fUSD/lending_fUSD_20251122
["ID","MTS","AMOUNT","RATE_DAILY","PERIOD"]
[394623973,1763794261235,-500.0,0.00016868,2]
[394623974,1763794261244,-500.0,0.00016868,2]
[394623975,1763794261253,-645.03199761,0.00016868,2]
[394623976,1763794261263,-500.0,0.00016868,2]
[394623977,1763794261272,-1602.56,0.00016868,2]
[394623978,1763794261281,-500.0,0.00016868,2]
[394623979,1763794261290,-1285.23,0.00016868,2]
[394623980,1763794261300,-500.0,0.00016868,2]
[394623981,1763794261309,-500.0,0.00016868,2]
[394623982,1763794261319,-500.0,0.00016868,2]
[394623983,1763794261329,-500.0,0.00016868,2]
[394623984,1763794261339,-500.0,0.00016868,2]
[394623985,1763794261349,-319.72550428,0.00016868,2]
[394623986,1763794261358,-500.0,0.00016868,2]
[394623987,1763794261368,-1153.95,0.00016868,2]
[394623988,1763794261378,-3616.15,0.00016868,2]
[394623989,1763794261392,-500.0,0.00016868,2]
[394623990,1763794261404,-500.0,0.00016868,2]
[394623991,1763794261415,-500.0,0.00016868,2]
[394623992,1763794261426,-500.0,0.00016868,2]
[394623993,1763794261436,-579.89,0.00016868,2]
[394623994,1763794261447,-500.0,0.00016868,2]
[394623995,1763794261458,-2896.92,0.00016868,2]
[394623996,1763794261468,-920.73,0.00016868,2]
[394623997,1763794261478,-500.0,0.00016868,2]
[394623998,1763794261488,-500.0,0.00016868,2]
[394623999,1763794261498,-500.0,0.00016868,2]
[394624000,1763794261507,-500.0,0.00016868,2]
[394624001,1763794261517,-500.0,0.00016868,2]
[394624002,1763794261527,-500.0,0.00016868,2]
[394624003,1763794261536,-1327.17,0.00016868,2]
[394624004,1763794261547,-500.0,0.00016868,2]
[394624005,1763794261556,-500.0,0.00016868,2]
[394624006,1763794261567,-500.0,0.00016868,2]
[394624007,1763794261576,-572.12,0.00016868,2]
[394624008,1763794261585,-393.75670834,0.00016868,2]
[394624009,1763794261595,-500.0,0.00016868,2]
[394624010,1763794261605,-590.82,0.00016868,2]
[394624011,1763794261615,-500.0,0.00016868,2]
[394624012,1763794261625,-500.0,0.00016868,2]
[394624013,1763794261634,-722.67,0.00016868,2]
[394624014,1763794261644,-617.59427257,0.00016868,2]
[394624015,1763794261653,-697.82,0.00016868,2]
[394624016,1763794261663,-500.0,0.00016868,2]
[394624017,1763794261673,-424.05122877,0.00016868,2]
[394624018,1763794261682,-699.63,0.00016868,2]
[394624019,1763794261691,-545.08686085,0.00016868,2]
[394624020,1763794261706,-1177.31,0.00016868,2]
[394624021,1763794261715,-153.52471131,0.00016869,2]
[394624022,1763794261724,-161.99860493,0.00016869,2]
[394624023,1763794261733,-500.0,0.00016869,2]
[394624024,1763794261745,-570.56008556,0.00016869,2]
[394624025,1763794261755,-500.0,0.00016869,2]
[394624026,1763794261764,-500.0,0.00016869,2]
[394624027,1763794261776,-500.0,0.00016869,2]
[394624028,1763794261785,-420.25840036,0.00016869,2]
[394624029,1763794261795,-500.0,0.00016869,2]
[394624030,1763794261804,-197.22712095,0.00016869,2]
[394624031,1763794261813,-500.0,0.00016869,2]
[394624032,1763794261822,-500.0,0.00016869,2]
[394624033,1763794261831,-500.0,0.00016869,2]
[394624034,1763794261840,-500.0,0.00016869,2]
[394624035,1763794261850,-678.98,0.00016869,2]
[394624036,1763794261859,-516.71444309,0.00016869,2]
[394624037,1763794261868,-986.04,0.00016869,2]
[394624038,1763794261877,-500.0,0.00016869,2]
[394624039,1763794261886,-530.90625233,0.00016869,2]
[394624040,1763794261895,-500.0,0.00016869,2]
[394624041,1763794261904,-500.0,0.00016869,2]
[394624042,1763794261914,-500.0,0.00016869,2]
[394624043,1763794261923,-500.0,0.00016869,2]
[394624044,1763794261932,-558.25,0.00016869,2]
[394624045,1763794261942,-500.0,0.00016869,2]
[394624046,1763794261952,-976.73,0.00016869,2]
[394624047,1763794261966,-989.08,0.00016869,2]
[394624048,1763794261989,-710.75,0.00016869,2]
[394624049,1763794262003,-722.8,0.00016869,2]
[394624050,1763794262012,-500.0,0.00016869,2]
[394624051,1763794262022,-500.0,0.00016869,2]
[394624052,1763794262032,-500.0,0.00016869,2]
[394624053,1763794262042,-700.65,0.00016869,2]
[394624054,1763794262051,-500.0,0.00016869,2]
[394624055,1763794262061,-500.0,0.00016869,2]
[394624056,1763794262071,-500.0,0.00016869,2]
[394624057,1763794262080,-500.0,0.00016869,2]
[394624058,1763794262090,-500.0,0.00016869,2]
[394624059,1763794262099,-500.0,0.00016869,2]
[394624060,1763794262107,-623.16,0.00016869,2]
[394624061,1763794262115,-601.5,0.00016869,2]
[394624062,1763794262124,-500.0,0.00016869,2]
[394624063,1763794262133,-1004.97,0.00016869,2]
[394624064,1763794262142,-156.93542263,0.00016869,2]
[394624065,1763794262151,-500.0,0.00016869,2]
[394624066,1763794262161,-500.0,0.00016869,2]
[394624067,1763794262170,-910.4,0.00016869,2]
[394624068,1763794262180,-500.0,0.00016869,2]
[394624069,1763794262189,-500.0,0.00016869,2]
[394624070,1763794262198,-500.0,0.00016869,2]
[394624071,1763794262208,-500.0,0.00016869,2]
[394624072,1763794262218,-500.0,0.00016869,2]
[394624073,1763794262228,-500.0,0.00016869,2]
[394624074,1763794262237,-500.0,0.00016869,2]
[394624075,1763794262249,-500.0,0.00016869,2]
[394624076,1763794262259,-764.09,0.00016869,2]
[394624077,1763794262269,-500.0,0.00016869,2]
[394624078,1763794262278,-500.0,0.00016869,2]
[394624079,1763794262289,-500.0,0.00016869,2]
[394624080,1763794262300,-317.56931586,0.00016869,2]
[394624081,1763794262309,-500.0,0.00016869,2]
[394624082,1763794262318,-500.0,0.00016869,2]
[394624083,1763794262328,-500.0,0.00016869,2]
[394624084,1763794262337,-675.23,0.00016869,2]
[394624085,1763794262346,-500.0,0.00016869,2]
[394624086,1763794262355,-500.0,0.00016869,2]
[394624087,1763794262364,-2140.76,0.00016869,2]
[394624088,1763794262374,-765.36,0.00016869,2]
[394624089,1763794262383,-500.0,0.00016869,2]
[394624090,1763794262392,-500.0,0.00016869,2]
[394624091,1763794262401,-500.0,0.00016869,2]
[394624092,1763794262411,-294.53852323,0.00016869,2]
[394624093,1763794262420,-500.0,0.00016869,2]
[394624094,1763794262429,-701.46,0.00016869,2]
[394624095,1763794262439,-500.0,0.00016869,2]
[394624096,1763794262447,-500.0,0.00016869,2]
[394624097,1763794262456,-500.0,0.00016869,2]
[394624098,1763794262465,-500.0,0.00016869,2]
[394624099,1763794262474,-500.0,0.00016869,2]
[394624100,1763794262483,-500.0,0.00016869,2]
[394624101,1763794262492,-500.0,0.00016869,2]
[394624102,1763794262501,-939.76,0.00016869,2]
[394624103,1763794262511,-500.0,0.00016869,2]
[394624104,1763794262520,-848.74,0.00016869,2]
[394624105,1763794262530,-500.0,0.00016869,2]
[394624106,1763794262541,-500.0,0.00016869,2]
[394624107,1763794262551,-500.0,0.00016869,2]
[394624108,1763794262560,-1444.99,0.00016869,2]
[394624109,1763794262569,-933.31,0.00016869,2]
[394624110,1763794262578,-500.0,0.00016869,2]
[394624111,1763794262587,-500.0,0.00016869,2]
[394624112,1763794262597,-430.32274226,0.00016869,2]
[394624113,1763794262606,-500.0,0.00016869,2]
[394624114,1763794262615,-500.0,0.00016869,2]
[394624115,1763794262625,-500.0,0.00016869,2]
[394624116,1763794262635,-887.85,0.00016869,2]
[394624117,1763794262645,-500.0,0.00016869,2]
[394624118,1763794262721,-500.0,0.00016869,2]
[394624119,1763794262730,-500.0,0.00016869,2]
[394624120,1763794262741,-391.4072665,0.00016869,2]
[394624121,1763794262750,-500.0,0.00016869,2]
[394624122,1763794262760,-500.0,0.00016869,2]
[394624123,1763794262769,-500.0,0.00016869,2]
[394624124,1763794262780,-500.0,0.00016869,2]
[394624125,1763794262790,-931.28,0.00016869,2]
[394624126,1763794262798,-997.9,0.00016869,2]
[394624127,1763794262808,-500.0,0.00016869,2]
[394624128,1763794262818,-500.0,0.00016869,2]
[394624129,1763794262827,-500.0,0.00016869,2]
[394624130,1763794262836,-427.07831054,0.00016869,2]
[394624131,1763794262845,-500.0,0.00016869,2]
[394624132,1763794262854,-1000.85,0.00016869,2]
[394624133,1763794262863,-500.0,0.00016869,2]
[394624134,1763794262871,-500.0,0.00016869,2]
[394624135,1763794262880,-537.79789632,0.00016869,2]
[394624136,1763794262889,-500.0,0.00016869,2]
[394624137,1763794262899,-1017.23,0.00016869,2]
[394624138,1763794262909,-500.0,0.00016869,2]
[394624139,1763794262918,-500.0,0.00016869,2]
[394624140,1763794262927,-1172.43,0.00016869,2]
[394624141,1763794262937,-500.0,0.00016869,2]
[394624142,1763794262947,-500.0,0.00016869,2]
[394624143,1763794262956,-500.0,0.00016869,2]
[394624144,1763794262966,-683.37,0.00016869,2]
[394624145,1763794262975,-500.0,0.00016869,2]
[394624146,1763794262984,-500.0,0.00016869,2]
[394624147,1763794262997,-500.0,0.00016869,2]
[394624148,1763794263007,-500.0,0.00016869,2]
[394624149,1763794263016,-892.76,0.00016869,2]
[394624150,1763794263025,-1129.93,0.00016869,2]
[394624151,1763794263035,-500.0,0.00016869,2]
[394624152,1763794263044,-500.0,0.00016869,2]
[394624153,1763794263054,-672.97,0.00016869,2]
[394624154,1763794263065,-500.0,0.00016869,2]
[394624155,1763794263075,-964.99,0.00016869,2]
[394624156,1763794263084,-1214.93,0.00016869,2]
[394624157,1763794263094,-500.0,0.00016869,2]
[394624158,1763794263103,-500.0,0.00016869,2]
[394624159,1763794263113,-500.0,0.00016869,2]
[394624160,1763794263122,-500.0,0.00016869,2]
[394624161,1763794263131,-500.0,0.00016869,2]
[394624162,1763794263141,-1052.39,0.00016869,2]
[394624163,1763794263150,-500.0,0.00016869,2]
[394624164,1763794263160,-500.0,0.00016869,2]
[394624165,1763794263169,-423.99450735,0.00016869,2]
[394624166,1763794263179,-500.0,0.00016869,2]
[394624167,1763794263192,-606.62260077,0.00016869,2]
[394624168,1763794263202,-500.0,0.00016869,2]
[394624169,1763794263211,-500.0,0.00016869,2]
[394624170,1763794263220,-413.67716462,0.00016869,2]
[394624171,1763794263230,-500.0,0.00016869,2]
[394624172,1763794263239,-310.16462738,0.00016869,2]
[394624173,1763794263248,-500.0,0.00016869,2]
[394624174,1763794263257,-500.0,0.00016869,2]
[394624175,1763794263267,-845.21,0.00016869,2]
[394624176,1763794263276,-500.0,0.00016869,2]
[394624177,1763794263285,-500.0,0.00016869,2]
[394624178,1763794263294,-973.59,0.00016869,2]
[394624179,1763794263303,-500.0,0.00016869,2]
[394624180,1763794263312,-644.61768678,0.00016869,2]
[394624181,1763794263321,-417.61262694,0.00016869,2]
[394624182,1763794263332,-457.2810793,0.00016869,2]
[394624183,1763794263341,-500.0,0.00016869,2]
[394624184,1763794263351,-500.0,0.00016869,2]
[394624185,1763794263360,-500.0,0.00016869,2]
[394624186,1763794263369,-500.0,0.00016869,2]
[394624187,1763794263378,-500.0,0.00016869,2]
[394624188,1763794263387,-500.0,0.00016869,2]
[394624189,1763794263397,-741.9,0.00016869,2]
[394624190,1763794263405,-656.9,0.00016869,2]
[394624191,1763794263417,-500.0,0.00016869,2]
[394624192,1763794263426,-500.0,0.00016869,2]
[394624193,1763794263436,-500.0,0.00016869,2]
[394624194,1763794263445,-500.0,0.00016869,2]
[394624195,1763794263454,-500.0,0.00016869,2]
[394624196,1763794263464,-411.50255639,0.00016869,2]
[394624197,1763794263473,-158.99229093,0.00016869,2]
[394624198,1763794263482,-500.0,0.00016869,2]
[394624199,1763794263491,-723.57,0.00016869,2]
[394624200,1763794263500,-500.0,0.00016869,2]
[394624201,1763794263509,-1356.25,0.00016869,2]
[394624202,1763794263518,-576.17233065,0.00016869,2]
[394624203,1763794263527,-901.3,0.00016869,2]
[394624204,1763794263536,-718.28,0.00016869,2]
[394624205,1763794263545,-500.0,0.00016869,2]
[394624206,1763794263555,-500.0,0.00016869,2]
[394624207,1763794263564,-500.0,0.00016869,2]
[394624208,1763794263573,-618.0,0.00016869,2]
[394624209,1763794263582,-618.0,0.00016869,2]
[394624210,1763794263591,-500.0,0.00016869,2]
[394624211,1763794263600,-500.0,0.00016869,6]
[394624212,1763794263609,-500.0,0.00016869,7]
[394624213,1763794263619,-763.36,0.00016869,2]
[394624214,1763794263628,-455.25368908,0.00016869,2]
[394624215,1763794263638,-500.0,0.00016869,2]
[394624216,1763794263647,-512.49811268,0.00016869,2]
[394624217,1763794263656,-1117.36,0.00016869,2]
[394624218,1763794263666,-500.0,0.00016869,2]
[394624219,1763794263675,-500.0,0.00016869,2]
[394624220,1763794263684,-1603.32,0.00016869,2]
[394624221,1763794263694,-937.64,0.00016869,2]
[394624222,1763794263708,-500.0,0.00016869,2]
[394624223,1763794263717,-1179.07,0.00016869,2]
[394624224,1763794263727,-500.0,0.00016869,2]
[394624225,1763794263736,-693.62,0.00016869,2]
[394624226,1763794263746,-1229.13,0.00016869,2]
[394624227,1763794263755,-509.37,0.00016869,2]
[394624228,1763794263764,-1034.72,0.00016869,2]
[394624229,1763794263774,-500.0,0.00016869,2]
[394624230,1763794263785,-510.89,0.00016869,2]
[394624231,1763794263794,-533.158809,0.00016869,2]
[394624232,1763794263804,-530.49,0.00016869,2]
[394624233,1763794263813,-534.72,0.00016869,2]
[394624234,1763794263822,-500.0,0.00016869,2]
[394624235,1763794263831,-500.0,0.00016869,2]
[394624236,1763794263841,-1200.18,0.00016869,2]
[394624237,1763794263850,-781.88,0.00016869,2]
[394624238,1763794263859,-500.0,0.00016869,2]
[394624239,1763794263868,-500.0,0.00016869,2]
[394624240,1763794263878,-824.31,0.0001687,2]
[394624241,1763794263887,-508.96786185,0.0001687,2]
[394624242,1763794263896,-500.0,0.0001687,2]
[394624243,1763794263905,-902.69,0.0001687,2]
[394624244,1763794263915,-543.53,0.0001687,2]
[394624245,1763794263924,-500.0,0.0001687,2]
[394624246,1763794263933,-500.0,0.0001687,2]
[394624247,1763794263943,-500.0,0.0001687,2]
[394624248,1763794263952,-500.0,0.0001687,2]
[394624249,1763794263962,-500.0,0.0001687,2]
[394624250,1763794263971,-500.0,0.0001687,2]
[394624251,1763794263980,-500.0,0.0001687,2]
[394624252,1763794263990,-500.0,0.0001687,2]
[394624253,1763794263999,-500.0,0.0001687,2]
[394624254,1763794264008,-500.0,0.0001687,2]
[394624255,1763794264017,-500.0,0.0001687,2]
[394624256,1763794264027,-1268.07,0.0001687,2]
[394624257,1763794264036,-478.71390443,0.0001687,2]
[394624258,1763794264045,-500.0,0.0001687,2]
[394624259,1763794264055,-500.0,0.0001687,2]
[394624260,1763794264064,-500.0,0.0001687,2]
[394624261,1763794264073,-630.95,0.0001687,2]
[394624262,1763794264083,-500.0,0.0001687,2]
[394624263,1763794264092,-609.69,0.0001687,2]
[394624264,1763794264102,-500.0,0.0001687,2]
[394624265,1763794264111,-787.89,0.0001687,2]
[394624266,1763794264120,-847.33,0.0001687,2]
[394624267,1763794264130,-975.05,0.0001687,2]
[394624268,1763794264139,-554.76803854,0.0001687,2]
[394624269,1763794264148,-1310.69,0.0001687,2]
[394624270,1763794264157,-500.0,0.0001687,2]
[394624271,1763794264168,-500.0,0.0001687,2]
[394624272,1763794264178,-500.0,0.0001687,2]
[394624273,1763794264188,-2171.89,0.0001687,2]
[394624274,1763794264197,-500.0,0.0001687,2]
[394624275,1763794264207,-500.0,0.0001687,2]
[394624276,1763794264216,-500.0,0.0001687,2]
[394624277,1763794264225,-500.0,0.0001687,2]
[394624278,1763794264235,-1007.79,0.0001687,2]
[394624279,1763794264244,-856.22,0.0001687,2]
[394624280,1763794264254,-533.86,0.0001687,2]
[394624281,1763794264263,-1114.85,0.0001687,2]
[394624282,1763794264272,-608.51,0.0001687,2]
[394624283,1763794264282,-500.0,0.0001687,2]
[394624284,1763794264292,-1103.11,0.0001687,2]
[394624285,1763794264301,-745.99,0.0001687,2]
[394624286,1763794264311,-521.21125437,0.0001687,2]
[394624287,1763794264321,-500.0,0.0001687,2]
[394624288,1763794264331,-552.48,0.0001687,2]
[394624289,1763794264341,-1146.36,0.0001687,2]
[394624290,1763794264351,-723.0,0.0001687,2]
[394624291,1763794264361,-500.0,0.0001687,2]
[394624292,1763794264371,-511.7958155,0.0001687,2]
[394624293,1763794264381,-500.0,0.0001687,2]
[394624294,1763794264392,-1060.51,0.0001687,2]
[394624295,1763794264401,-500.0,0.0001687,2]
[394624296,1763794264415,-634.82026114,0.0001687,2]
[394624297,1763794264425,-500.0,0.0001687,2]
[394624298,1763794264435,-524.82,0.0001687,2]
[394624299,1763794264444,-565.76,0.0001687,2]
[394624300,1763794264454,-333.81416125,0.0001687,2]
[394624301,1763794264464,-500.0,0.0001687,2]
[394624302,1763794264474,-500.0,0.0001687,2]
[394624303,1763794264483,-1259.29,0.0001687,2]
[394624304,1763794264493,-500.0,0.0001687,2]
[394624305,1763794264503,-500.0,0.0001687,2]
[394624306,1763794264513,-1002.78,0.0001687,2]
[394624307,1763794264522,-500.0,0.0001687,2]
[394624308,1763794264532,-1183.34,0.0001687,2]
[394624309,1763794264542,-500.0,0.0001687,2]
[394624310,1763794264551,-500.0,0.0001687,2]
[394624311,1763794264561,-653.01,0.0001687,2]
[394624312,1763794264570,-1353.3,0.0001687,2]
[394624313,1763794264579,-649.95,0.0001687,2]
[394624314,1763794264589,-500.0,0.0001687,2]
[394624315,1763794264598,-500.0,0.0001687,2]
[394624316,1763794264607,-500.0,0.0001687,2]
[394624317,1763794264616,-500.0,0.0001687,2]
[394624318,1763794264626,-988.04,0.0001687,2]
[394624319,1763794264635,-500.0,0.0001687,2]
[394624320,1763794264657,-500.0,0.0001687,2]
[394624321,1763794264678,-500.0,0.0001687,2]
[394624322,1763794264697,-1484.02,0.0001687,2]
[394624323,1763794264721,-500.0,0.0001687,2]
[394624324,1763794264736,-640.61,0.0001687,2]
[394624325,1763794264750,-531.61,0.0001687,2]
[394624326,1763794264760,-500.0,0.0001687,2]
[394624327,1763794264771,-500.0,0.0001687,2]
[394624328,1763794264781,-844.22,0.0001687,2]
[394624329,1763794264792,-500.0,0.0001687,2]
[394624330,1763794264803,-500.0,0.0001687,2]
[394624331,1763794264812,-635.94,0.0001687,2]
[394624332,1763794264823,-553.02,0.0001687,2]
[394624333,1763794264833,-903.73,0.0001687,2]
[394624334,1763794264842,-500.0,0.0001687,2]
[394624335,1763794264851,-500.0,0.0001687,2]
[394624336,1763794264860,-500.0,0.0001687,2]
[394624337,1763794264869,-1090.24,0.0001687,2]
[394624338,1763794264878,-500.0,0.0001687,2]
[394624339,1763794264887,-854.22,0.0001687,2]
[394624340,1763794264898,-500.0,0.0001687,2]
[394624341,1763794264908,-1066.78,0.0001687,2]
[394624342,1763794264921,-500.0,0.0001687,2]
[394624343,1763794264931,-604.87,0.0001687,2]
[394624344,1763794264940,-500.0,0.0001687,2]
[394624345,1763794264949,-500.0,0.0001687,2]
[394624346,1763794264959,-500.0,0.0001687,2]
[394624347,1763794264968,-500.0,0.0001687,2]
[394624348,1763794264979,-500.0,0.0001687,2]
[394624349,1763794264988,-3017.38053016,0.00016885,2]
[394624350,1763794264998,-4541.33752651,0.00016896,2]
[394624351,1763794265007,-159.66062577,0.00016897,2]
[394624352,1763794265017,-618.0,0.00016999,2]
[394624353,1763794265026,-500.0,0.00016999,8]
[394624354,1763794265037,-200000.0,0.00017,2]
[394624355,1763794265046,-2000.0,0.00017,2]
[394624356,1763794265055,-250.0,0.00017,2]
[394624357,1763794265065,-500.0,0.00017006,2]
[394624358,1763794265074,-500.0,0.00017041,2]
[394624359,1763794265084,-500.0,0.00017041,2]
[394624360,1763794265093,-500.0,0.00017041,2]
[394624361,1763794265102,-500.0,0.00017041,2]
[394624362,1763794265111,-500.0,0.00017041,2]
[394624363,1763794265120,-400.0,0.00017041,2]
[394624364,1763794265130,-507.99452148,0.00017041,2]
[394624365,1763794265139,-564.44501468,0.00017041,2]
[394624366,1763794265149,-241.6577499,0.00017041,2]
[394624367,1763794265158,-500.0,0.00017041,2]
[394624368,1763794265169,-387.36440118,0.00017041,2]
[394624369,1763794265178,-500.0,0.00017041,2]
[394624370,1763794265188,-500.0,0.00017041,2]
[394624371,1763794265197,-984.74,0.00017041,2]
[394624372,1763794265207,-500.0,0.00017041,2]
[394624373,1763794265217,-500.0,0.00017041,2]
[394624374,1763794265226,-500.0,0.00017042,2]
[394624375,1763794265234,-470.64609812,0.00017042,2]
[394624376,1763794265243,-500.0,0.00017042,2]
[394624377,1763794265252,-536.42069231,0.00017042,2]
[394624378,1763794265261,-500.0,0.00017042,2]
[394624379,1763794265271,-500.0,0.00017042,2]
[394624380,1763794265280,-500.0,0.00017042,2]
[394624381,1763794265289,-500.0,0.00017042,2]
[394624382,1763794265298,-500.0,0.00017042,2]
[394624383,1763794265307,-500.0,0.00017042,2]
[394624384,1763794265316,-500.0,0.00017042,2]
[394624385,1763794265326,-500.0,0.00017042,2]
[394624386,1763794265335,-156.9083611,0.00017042,2]
[394624387,1763794265344,-500.0,0.00017042,2]
[394624388,1763794265353,-500.0,0.00017042,2]
[394624389,1763794265363,-500.0,0.00017042,2]
[394624390,1763794265372,-500.0,0.00017042,2]
[394624391,1763794265380,-500.0,0.00017042,2]
[394624392,1763794265390,-500.0,0.00017042,2]
[394624393,1763794265399,-500.0,0.00017042,2]
[394624394,1763794265408,-500.0,0.00017042,2]
[394624395,1763794265419,-500.0,0.00017042,2]
[394624396,1763794265429,-500.0,0.00017042,2]
[394624397,1763794265438,-372.97140221,0.00017042,2]
[394624398,1763794265447,-500.0,0.00017042,2]
[394624399,1763794265456,-500.0,0.00017042,2]
[394624400,1763794265465,-500.0,0.00017042,2]
[394624401,1763794265474,-658.21,0.00017042,2]
[394624402,1763794265483,-500.0,0.00017042,2]
[394624403,1763794265492,-500.0,0.00017042,2]
[394624404,1763794265502,-500.0,0.00017042,2]
[394624405,1763794265512,-500.0,0.00017042,2]
[394624406,1763794265521,-500.0,0.00017042,2]
[394624407,1763794265530,-500.0,0.00017042,2]
[394624408,1763794265539,-500.0,0.00017042,2]
[394624409,1763794265548,-500.0,0.00017042,2]
[394624410,1763794265558,-305.39367729,0.00017042,2]
[394624411,1763794265567,-500.0,0.00017042,2]
[394624412,1763794265577,-500.0,0.00017042,2]
[394624413,1763794265586,-500.0,0.00017042,2]
[394624414,1763794265595,-1568.52,0.00017042,2]
[394624415,1763794265604,-1007.46,0.00017042,2]
[394624416,1763794265614,-500.0,0.00017042,2]
[394624417,1763794265623,-1250.67,0.00017042,2]
[394624418,1763794265632,-401.48634413,0.00017042,2]
[394624419,1763794265641,-500.0,0.00017042,2]
[394624420,1763794265650,-1048.06,0.00017042,2]
[394624421,1763794265660,-946.34,0.00017042,2]
[394624422,1763794265669,-500.0,0.00017042,2]
[394624423,1763794265678,-500.0,0.00017042,2]
[394624424,1763794265687,-500.0,0.00017042,2]
[394624425,1763794265696,-500.0,0.00017042,2]
[394624426,1763794265710,-500.0,0.00017042,2]
[394624427,1763794265718,-500.0,0.00017042,2]
[394624428,1763794265728,-500.0,0.00017042,2]
[394624429,1763794265737,-500.0,0.00017042,2]
[394624430,1763794265746,-234.70239157,0.00017042,2]
[394624431,1763794265755,-711.52,0.00017042,2]
[394624432,1763794265764,-500.0,0.00017042,2]
[394624433,1763794265775,-849.89,0.00017042,2]
[394624434,1763794265784,-500.0,0.00017042,2]
[394624435,1763794265794,-414.41014957,0.00017042,2]
[394624436,1763794265803,-500.0,0.00017042,2]
[394624437,1763794265812,-531.87926096,0.00017042,2]
[394624438,1763794265821,-854.66,0.00017042,2]
[394624439,1763794265830,-500.0,0.00017042,2]
[394624440,1763794265839,-500.0,0.00017042,2]
[394624441,1763794265847,-500.0,0.00017042,2]
[394624442,1763794265856,-500.0,0.00017042,2]
[394624443,1763794265865,-500.0,0.00017042,2]
[394624444,1763794265874,-500.0,0.00017042,2]
[394624445,1763794265883,-500.0,0.00017042,2]
[394624446,1763794265892,-500.0,0.00017042,2]
[394624447,1763794265901,-500.0,0.00017042,2]
[394624448,1763794265910,-500.0,0.00017042,2]
[394624449,1763794265919,-500.0,0.00017042,2]
[394624450,1763794265928,-500.0,0.00017042,2]
[394624451,1763794265938,-500.0,0.00017042,2]
[394624452,1763794265947,-602.92,0.00017042,2]
[394624453,1763794265956,-500.0,0.00017042,2]
[394624454,1763794265965,-500.0,0.00017042,2]
[394624455,1763794265974,-500.0,0.00017042,2]
[394624456,1763794265984,-500.0,0.00017042,2]
[394624457,1763794265993,-1014.16,0.00017042,2]
[394624458,1763794266002,-500.0,0.00017042,2]
[394624459,1763794266011,-500.0,0.00017042,2]
[394624460,1763794266021,-500.0,0.00017042,2]
[394624461,1763794266030,-500.0,0.00017042,2]
[394624462,1763794266039,-1143.04,0.00017042,2]
[394624463,1763794266048,-500.0,0.00017042,2]
[394624464,1763794266057,-711.79,0.00017042,2]
[394624465,1763794266067,-500.0,0.00017042,2]
[394624466,1763794266076,-500.0,0.00017042,2]
[394624467,1763794266085,-238.65901977,0.00017042,2]
[394624468,1763794266095,-317.33784502,0.00017042,2]
[394624469,1763794266104,-500.0,0.00017042,2]
[394624470,1763794266115,-450.64674512,0.00017042,2]
[394624471,1763794266124,-249.63034726,0.00017042,2]
[394624472,1763794266134,-500.0,0.00017042,2]